[Event "Late-Titled-Tuesday-Blitz-May-28-2024"]
[Site "Chess.com"]
[Date "2024.05.28"]
[Round "4"]
[White "nabukatnezarr"]
[Black "TheoSlade"]
[Result "0-1"]
[WhiteElo "2650"]
[BlackElo "2472"]
[TimeControl "180+1"]
[EndTime "14:38:35 PDT"]
[Termination "TheoSlade won by checkmate"]

1. b3 {[%clk 0:03:00.9]} 1... e5 {[%clk 0:03:00]} 2. Bb2 {[%clk 0:03:01.8]} 2...
Nc6 {[%clk 0:03:00.4]} 3. e3 {[%clk 0:03:02]} 3... d6 {[%clk 0:03:00.7]} 4. Bb5
{[%clk 0:03:02.1]} 4... Bd7 {[%clk 0:02:59.2]} 5. Ne2 {[%clk 0:03:01]} 5... Qg5
{[%clk 0:02:54.2]} 6. O-O {[%clk 0:02:58.2]} 6... h5 {[%clk 0:02:54.6]} 7. f4
{[%clk 0:02:56.8]} 7... exf4 {[%clk 0:02:45.6]} 8. Nxf4 {[%clk 0:02:54.1]} 8...
Qxb5 {[%clk 0:02:43.8]} 9. Nc3 {[%clk 0:02:45.6]} 9... Qg5 {[%clk 0:02:41]} 10.
Ncd5 {[%clk 0:02:46.5]} 10... O-O-O {[%clk 0:02:39]} 11. b4 {[%clk 0:02:40]}
11... Nge7 {[%clk 0:02:30.9]} 12. c4 {[%clk 0:02:39.1]} 12... Nxd5 {[%clk
0:02:28.7]} 13. cxd5 {[%clk 0:02:40]} 13... Ne5 {[%clk 0:02:19.4]} 14. Rc1
{[%clk 0:02:34.5]} 14... Kb8 {[%clk 0:01:59.3]} 15. Bd4 {[%clk 0:02:30.6]} 15...
Be7 {[%clk 0:01:48.1]} 16. Qb3 {[%clk 0:02:30.3]} 16... Ng6 {[%clk 0:01:38.2]}
17. Qa3 {[%clk 0:02:27.7]} 17... b6 {[%clk 0:01:37.3]} 18. Qc3 {[%clk
0:02:05.6]} 18... Rc8 {[%clk 0:01:32.6]} 19. Bxg7 {[%clk 0:02:05.9]} 19... Rhg8
{[%clk 0:01:27.4]} 20. h4 {[%clk 0:01:28.2]} 20... Nxh4 {[%clk 0:01:23.9]} 21.
Rf2 {[%clk 0:01:06.6]} 21... Rxg7 {[%clk 0:01:21]} 22. Qc4 {[%clk 0:01:07]}
22... Bf6 {[%clk 0:01:09.7]} 23. a4 {[%clk 0:01:02.5]} 23... Be5 {[%clk
0:01:07.8]} 24. a5 {[%clk 0:01:01.3]} 24... b5 {[%clk 0:01:00.4]} 25. Qe4 {[%clk
0:00:59.6]} 25... Qf5 {[%clk 0:00:54.9]} 26. Qxf5 {[%clk 0:00:53.3]} 26... Nxf5
{[%clk 0:00:55.4]} 27. Nxh5 {[%clk 0:00:53.7]} 27... Rg5 {[%clk 0:00:55]} 28.
Nf4 {[%clk 0:00:53.4]} 28... Bxf4 {[%clk 0:00:54.6]} 29. Rxf4 {[%clk 0:00:54.3]}
29... Rcg8 {[%clk 0:00:52.6]} 30. Rf2 {[%clk 0:00:53.4]} 30... Nh4 {[%clk
0:00:52.8]} 31. Kf1 {[%clk 0:00:51.5]} 31... Rxg2 {[%clk 0:00:52.5]} 32. Rxg2
{[%clk 0:00:51.1]} 32... Rxg2 {[%clk 0:00:49.4]} 33. Rc3 {[%clk 0:00:44.9]}
33... Rxd2 {[%clk 0:00:47.5]} 34. e4 {[%clk 0:00:41.9]} 34... Rb2 {[%clk
0:00:43.5]} 35. Rg3 {[%clk 0:00:40.2]} 35... Rxb4 {[%clk 0:00:42.7]} 36. a6
{[%clk 0:00:39.9]} 36... Rxe4 {[%clk 0:00:40.2]} 37. Rg8+ {[%clk 0:00:40.3]}
37... Bc8 {[%clk 0:00:40.7]} 38. Kf2 {[%clk 0:00:40.7]} 38... Ra4 {[%clk
0:00:38.9]} 39. Ke3 {[%clk 0:00:40.6]} 39... Rxa6 {[%clk 0:00:39]} 40. Kd3
{[%clk 0:00:41.2]} 40... Nf5 {[%clk 0:00:36.9]} 41. Kc3 {[%clk 0:00:42.1]} 41...
Ne7 {[%clk 0:00:37.1]} 42. Re8 {[%clk 0:00:42]} 42... Nxd5+ {[%clk 0:00:37.4]}
43. Kd4 {[%clk 0:00:41.7]} 43... Nb6 {[%clk 0:00:35.3]} 44. Rh8 {[%clk
0:00:40.6]} 44... c5+ {[%clk 0:00:35.1]} 45. Kc3 {[%clk 0:00:41.5]} 45... Kc7
{[%clk 0:00:33.5]} 46. Kb3 {[%clk 0:00:42.4]} 46... Be6+ {[%clk 0:00:32.8]} 47.
Kb2 {[%clk 0:00:43.3]} 47... Nc4+ {[%clk 0:00:32.8]} 48. Kb1 {[%clk 0:00:44.1]}
48... Ra3 {[%clk 0:00:30.3]} 49. Rh2 {[%clk 0:00:44.5]} 49... Rg3 {[%clk
0:00:29.7]} 50. Rh1 {[%clk 0:00:44.4]} 50... a5 {[%clk 0:00:29.8]} 51. Rf1
{[%clk 0:00:43.1]} 51... Rg2 {[%clk 0:00:29.8]} 52. Ka1 {[%clk 0:00:43.9]} 52...
a4 {[%clk 0:00:29.2]} 53. Rd1 {[%clk 0:00:43.5]} 53... b4 {[%clk 0:00:29.5]} 54.
Rf1 {[%clk 0:00:41.8]} 54... b3 {[%clk 0:00:29.9]} 55. Kb1 {[%clk 0:00:37.1]}
55... Na3+ {[%clk 0:00:29]} 56. Ka1 {[%clk 0:00:31.8]} 56... Ra2# {[%clk
0:00:29.1]} 0-1

[Event "Late-Titled-Tuesday-Blitz-May-28-2024"]
[Site "Chess.com"]
[Date "2024.05.28"]
[Round "4"]
[White "almaguerjm"]
[Black "boguszp"]
[Result "1-0"]
[WhiteElo "2457"]
[BlackElo "2033"]
[TimeControl "180+1"]
[EndTime "14:38:37 PDT"]
[Termination "almaguerjm won by checkmate"]

1. e4 {[%clk 0:02:59.4]} 1... c6 {[%clk 0:02:59.9]} 2. d4 {[%clk 0:02:57.7]}
2... d5 {[%clk 0:02:58.8]} 3. e5 {[%clk 0:02:57.6]} 3... c5 {[%clk 0:02:57.9]}
4. c3 {[%clk 0:02:55.7]} 4... Nc6 {[%clk 0:02:57]} 5. Nf3 {[%clk 0:02:55.8]}
5... Bg4 {[%clk 0:02:57.3]} 6. Bb5 {[%clk 0:02:53.7]} 6... e6 {[%clk 0:02:57.4]}
7. Bxc6+ {[%clk 0:02:51.5]} 7... bxc6 {[%clk 0:02:56.7]} 8. Qa4 {[%clk
0:02:51.8]} 8... Qb6 {[%clk 0:02:56.7]} 9. dxc5 {[%clk 0:02:48.8]} 9... Bxc5
{[%clk 0:02:54.4]} 10. Qxg4 {[%clk 0:02:48.7]} 10... Bxf2+ {[%clk 0:02:53.3]}
11. Ke2 {[%clk 0:02:35.8]} 11... Ne7 {[%clk 0:02:47.5]} 12. Qb4 {[%clk
0:02:26.5]} 12... O-O {[%clk 0:02:31.1]} 13. Qxb6 {[%clk 0:02:13.9]} 13... Bxb6
{[%clk 0:02:29.6]} 14. a4 {[%clk 0:02:10.1]} 14... a5 {[%clk 0:02:28]} 15. Be3
{[%clk 0:02:06.2]} 15... c5 {[%clk 0:02:27.1]} 16. Na3 {[%clk 0:02:06.7]} 16...
Rfc8 {[%clk 0:02:24.6]} 17. Nb5 {[%clk 0:02:06]} 17... Nf5 {[%clk 0:02:22.2]}
18. Bf2 {[%clk 0:02:05.6]} 18... Rab8 {[%clk 0:02:20.5]} 19. g4 {[%clk
0:02:03.7]} 19... Nh6 {[%clk 0:02:17.2]} 20. h3 {[%clk 0:02:02.2]} 20... Bd8
{[%clk 0:02:09.9]} 21. Be3 {[%clk 0:01:57.3]} 21... f6 {[%clk 0:01:48]} 22. Bxh6
{[%clk 0:01:40.5]} 22... gxh6 {[%clk 0:01:47]} 23. Kd3 {[%clk 0:01:31.2]} 23...
Rc6 {[%clk 0:01:26.9]} 24. Kc2 {[%clk 0:01:23.9]} 24... Be7 {[%clk 0:01:24.6]}
25. Rhf1 {[%clk 0:01:21.7]} 25... Rf8 {[%clk 0:01:18.4]} 26. Rae1 {[%clk
0:01:21]} 26... f5 {[%clk 0:01:16.2]} 27. Nd2 {[%clk 0:01:17.5]} 27... fxg4
{[%clk 0:01:12.5]} 28. Rxf8+ {[%clk 0:01:15.1]} 28... Bxf8 {[%clk 0:01:12.2]}
29. hxg4 {[%clk 0:01:15]} 29... Bg7 {[%clk 0:01:10.1]} 30. Nf3 {[%clk
0:01:13.6]} 30... Rc8 {[%clk 0:01:09.1]} 31. Kd3 {[%clk 0:01:12.5]} 31... Rf8
{[%clk 0:01:08]} 32. Ke3 {[%clk 0:01:11.7]} 32... h5 {[%clk 0:01:06.9]} 33. Rg1
{[%clk 0:00:59.8]} 33... hxg4 {[%clk 0:01:04.1]} 34. Rxg4 {[%clk 0:01:00.7]}
34... Rf5 {[%clk 0:01:03.9]} 35. Nd6 {[%clk 0:00:59.8]} 35... Rh5 {[%clk
0:01:02]} 36. Ne8 {[%clk 0:00:59.7]} 36... Rh1 {[%clk 0:00:51.7]} 37. Nxg7
{[%clk 0:00:56.8]} 37... Rb1 {[%clk 0:00:48.3]} 38. Nxe6+ {[%clk 0:00:53.7]}
38... Kf7 {[%clk 0:00:47.1]} 39. Nxc5 {[%clk 0:00:53.7]} 39... Rxb2 {[%clk
0:00:46.1]} 40. e6+ {[%clk 0:00:53.4]} 40... Ke7 {[%clk 0:00:45.3]} 41. Rg7+
{[%clk 0:00:51.2]} 41... Ke8 {[%clk 0:00:44.6]} 42. e7 {[%clk 0:00:51.9]} 42...
Rc2 {[%clk 0:00:42.7]} 43. Nb7 {[%clk 0:00:45.7]} 43... Rxc3+ {[%clk 0:00:42.1]}
44. Kd4 {[%clk 0:00:46.2]} 44... Rc8 {[%clk 0:00:17.8]} 45. Nd6+ {[%clk
0:00:45.4]} 45... Kd7 {[%clk 0:00:17.7]} 46. Nxc8 {[%clk 0:00:46]} 46... Ke6
{[%clk 0:00:03.4]} 47. Ne5 {[%clk 0:00:46.9]} 47... Kf5 {[%clk 0:00:02.9]} 48.
Nd6+ {[%clk 0:00:47.8]} 48... Kf4 {[%clk 0:00:02.6]} 49. e8=Q {[%clk 0:00:46.2]}
49... h5 {[%clk 0:00:01.6]} 50. Qf7# {[%clk 0:00:42.4]} 1-0

[Event "Late-Titled-Tuesday-Blitz-May-28-2024"]
[Site "Chess.com"]
[Date "2024.05.28"]
[Round "4"]
[White "Zq1"]
[Black "lluiss"]
[Result "1-0"]
[WhiteElo "2536"]
[BlackElo "2185"]
[TimeControl "180+1"]
[EndTime "14:38:39 PDT"]
[Termination "Zq1 won on time"]

1. d4 {[%clk 0:03:00.9]} 1... Nf6 {[%clk 0:02:59.1]} 2. c4 {[%clk 0:03:00.7]}
2... g6 {[%clk 0:02:58.9]} 3. Nc3 {[%clk 0:03:00.1]} 3... d5 {[%clk 0:02:58.8]}
4. Nf3 {[%clk 0:02:59.7]} 4... Bg7 {[%clk 0:02:58.2]} 5. cxd5 {[%clk 0:02:59.7]}
5... Nxd5 {[%clk 0:02:57.8]} 6. Bd2 {[%clk 0:03:00.3]} 6... Nb6 {[%clk
0:02:57.1]} 7. Bg5 {[%clk 0:02:58.8]} 7... O-O {[%clk 0:02:52.5]} 8. e3 {[%clk
0:02:58.1]} 8... h6 {[%clk 0:02:51.5]} 9. Bf4 {[%clk 0:02:57]} 9... c5 {[%clk
0:02:45.8]} 10. dxc5 {[%clk 0:02:54.1]} 10... N6d7 {[%clk 0:02:45.9]} 11. Bc4
{[%clk 0:02:36.2]} 11... Nc6 {[%clk 0:02:27.8]} 12. O-O {[%clk 0:02:33.3]} 12...
Nxc5 {[%clk 0:02:27.8]} 13. Rc1 {[%clk 0:02:28.2]} 13... e5 {[%clk 0:02:16.7]}
14. Bg3 {[%clk 0:02:26.6]} 14... e4 {[%clk 0:02:16]} 15. Nd2 {[%clk 0:02:15.4]}
15... Nd3 {[%clk 0:02:15.7]} 16. Bxd3 {[%clk 0:02:03.6]} 16... exd3 {[%clk
0:02:15.8]} 17. Qb3 {[%clk 0:01:59.5]} 17... b6 {[%clk 0:01:16.7]} 18. h3 {[%clk
0:01:52.4]} 18... Be6 {[%clk 0:01:12.2]} 19. Qb5 {[%clk 0:01:44.9]} 19... Na5
{[%clk 0:00:41.7]} 20. Rfd1 {[%clk 0:01:36.2]} 20... Rc8 {[%clk 0:00:40.9]} 21.
Nce4 {[%clk 0:01:32.4]} 21... Rxc1 {[%clk 0:00:25.9]} 22. Rxc1 {[%clk
0:01:31.7]} 22... Qd7 {[%clk 0:00:12.1]} 23. Qxd7 {[%clk 0:01:20]} 23... Bxd7
{[%clk 0:00:11.4]} 24. b3 {[%clk 0:01:19.8]} 24... Rc8 {[%clk 0:00:09.3]} 25.
Rxc8+ {[%clk 0:01:18.3]} 25... Bxc8 {[%clk 0:00:08.7]} 26. Kf1 {[%clk
0:01:12.7]} 26... Nc6 {[%clk 0:00:08.6]} 27. Bd6 {[%clk 0:01:06.7]} 27... Bf8
{[%clk 0:00:06.6]} 28. Bxf8 {[%clk 0:01:02.2]} 28... Kxf8 {[%clk 0:00:07.5]} 29.
Ke1 {[%clk 0:01:01.1]} 29... Nb4 {[%clk 0:00:07.7]} 30. Nc3 {[%clk 0:01:00.4]}
30... Nc2+ {[%clk 0:00:06.1]} 31. Kd1 {[%clk 0:00:59.4]} 31... Be6 {[%clk
0:00:04.9]} 32. Nf3 {[%clk 0:00:57.2]} 32... Nb4 {[%clk 0:00:02.4]} 33. Kd2
{[%clk 0:00:56.3]} 33... Bd7 {[%clk 0:00:01]} 34. Ne5 {[%clk 0:00:49]} 34... Bc8
{[%clk 0:00:00.7]} 35. Nxd3 {[%clk 0:00:47.1]} 35... Nxd3 {[%clk 0:00:01]} 36.
Kxd3 {[%clk 0:00:46.9]} 36... Ke7 {[%clk 0:00:01.6]} 37. Kd4 {[%clk 0:00:46]}
37... Bb7 {[%clk 0:00:01.8]} 38. e4 {[%clk 0:00:44.7]} 38... Kd6 {[%clk
0:00:01.9]} 39. f4 {[%clk 0:00:43.3]} 39... a6 {[%clk 0:00:02.1]} 40. h4 {[%clk
0:00:41.6]} 40... Ke6 {[%clk 0:00:02]} 41. g4 {[%clk 0:00:40.9]} 41... f6 {[%clk
0:00:02.2]} 42. f5+ {[%clk 0:00:40.3]} 42... gxf5 {[%clk 0:00:02]} 43. gxf5+
{[%clk 0:00:38.5]} 43... Kd6 {[%clk 0:00:02]} 44. Nd5 {[%clk 0:00:38.1]} 44...
Bxd5 {[%clk 0:00:01]} 45. exd5 {[%clk 0:00:37.7]} 45... Kd7 {[%clk 0:00:01]} 46.
b4 {[%clk 0:00:37.7]} 46... Kd6 {[%clk 0:00:01]} 47. a4 {[%clk 0:00:35.6]} 1-0

[Event "Late-Titled-Tuesday-Blitz-May-28-2024"]
[Site "Chess.com"]
[Date "2024.05.28"]
[Round "4"]
[White "janhelmer03"]
[Black "yaguigor"]
[Result "0-1"]
[WhiteElo "2398"]
[BlackElo "2587"]
[TimeControl "180+1"]
[EndTime "14:38:39 PDT"]
[Termination "yaguigor won on time"]

1. Nf3 {[%clk 0:03:00.8]} 1... d6 {[%clk 0:02:58.4]} 2. d4 {[%clk 0:03:00.7]}
2... Nf6 {[%clk 0:02:56.9]} 3. Nc3 {[%clk 0:02:58.8]} 3... Nbd7 {[%clk
0:02:54.7]} 4. e4 {[%clk 0:02:59.2]} 4... e5 {[%clk 0:02:54.2]} 5. Be3 {[%clk
0:02:55.5]} 5... Be7 {[%clk 0:02:52.4]} 6. Be2 {[%clk 0:02:53.7]} 6... c6 {[%clk
0:02:49.2]} 7. h3 {[%clk 0:02:53.3]} 7... O-O {[%clk 0:02:49]} 8. O-O {[%clk
0:02:53.6]} 8... b5 {[%clk 0:02:45.7]} 9. dxe5 {[%clk 0:02:47.6]} 9... dxe5
{[%clk 0:02:44.6]} 10. a3 {[%clk 0:02:32.4]} 10... Qc7 {[%clk 0:02:33.6]} 11.
Nd2 {[%clk 0:02:26.3]} 11... Bc5 {[%clk 0:02:31.9]} 12. Bxc5 {[%clk 0:02:19.1]}
12... Nxc5 {[%clk 0:02:31.4]} 13. Nb3 {[%clk 0:02:18.4]} 13... Ncxe4 {[%clk
0:02:30.4]} 14. Nxe4 {[%clk 0:02:18.3]} 14... Nxe4 {[%clk 0:02:30.4]} 15. Bf3
{[%clk 0:02:18.6]} 15... Nf6 {[%clk 0:02:29.1]} 16. Nc5 {[%clk 0:02:16.7]} 16...
Re8 {[%clk 0:02:27.6]} 17. Re1 {[%clk 0:02:15.1]} 17... Bf5 {[%clk 0:02:27.2]}
18. g4 {[%clk 0:01:43.6]} 18... Bg6 {[%clk 0:02:23.5]} 19. g5 {[%clk 0:01:43]}
19... Rad8 {[%clk 0:02:21.2]} 20. Qe2 {[%clk 0:01:38.9]} 20... Nd5 {[%clk
0:02:20.1]} 21. Bxd5 {[%clk 0:01:37.6]} 21... Rxd5 {[%clk 0:02:03.9]} 22. b4
{[%clk 0:01:37.3]} 22... e4 {[%clk 0:02:02.6]} 23. Qe3 {[%clk 0:01:36.5]} 23...
a5 {[%clk 0:01:52.7]} 24. f4 {[%clk 0:01:34.2]} 24... Bf5 {[%clk 0:01:48.9]} 25.
Kg2 {[%clk 0:01:32.1]} 25... h6 {[%clk 0:01:39.2]} 26. h4 {[%clk 0:01:31.5]}
26... a4 {[%clk 0:01:17.7]} 27. Rad1 {[%clk 0:01:18.9]} 27... Qd8 {[%clk
0:01:09.2]} 28. Nb7 {[%clk 0:01:06.7]} 28... Qd7 {[%clk 0:01:03.9]} 29. Nc5
{[%clk 0:01:07.1]} 29... Qd6 {[%clk 0:00:48.8]} 30. Nb7 {[%clk 0:01:01.8]} 30...
Qc7 {[%clk 0:00:48.9]} 31. Rxd5 {[%clk 0:01:01]} 31... cxd5 {[%clk 0:00:48.2]}
32. Nc5 {[%clk 0:01:01.6]} 32... Bg4 {[%clk 0:00:46.1]} 33. Kg3 {[%clk
0:00:59.9]} 33... Bf3 {[%clk 0:00:45.1]} 34. gxh6 {[%clk 0:00:52.2]} 34... Qc8
{[%clk 0:00:43]} 35. Rg1 {[%clk 0:00:20.5]} 35... Qg4+ {[%clk 0:00:40.9]} 36.
Kf2 {[%clk 0:00:20.5]} 36... Qxh4+ {[%clk 0:00:40.8]} 37. Kf1 {[%clk 0:00:20.2]}
37... Qxh6 {[%clk 0:00:38.8]} 38. Nd7 {[%clk 0:00:09]} 38... Qh3+ {[%clk
0:00:36]} 39. Ke1 {[%clk 0:00:09.3]} 39... Qxd7 {[%clk 0:00:36]} 40. Qd4 {[%clk
0:00:06.8]} 40... f5 {[%clk 0:00:29.6]} 41. Qf6 {[%clk 0:00:03.5]} 41... Bg4
{[%clk 0:00:27.9]} 0-1

[Event "Late-Titled-Tuesday-Blitz-May-28-2024"]
[Site "Chess.com"]
[Date "2024.05.28"]
[Round "4"]
[White "KirAk47"]
[Black "ckgchess"]
[Result "0-1"]
[WhiteElo "2562"]
[BlackElo "2871"]
[TimeControl "180+1"]
[EndTime "14:38:43 PDT"]
[Termination "ckgchess won by resignation"]

1. e4 {[%clk 0:02:56]} 1... c5 {[%clk 0:02:59.2]} 2. Nf3 {[%clk 0:02:55.6]} 2...
d6 {[%clk 0:02:59.6]} 3. Bb5+ {[%clk 0:02:55.8]} 3... Nd7 {[%clk 0:02:59.7]} 4.
O-O {[%clk 0:02:55.5]} 4... a6 {[%clk 0:03:00.2]} 5. Bxd7+ {[%clk 0:02:55.8]}
5... Bxd7 {[%clk 0:03:01.1]} 6. c3 {[%clk 0:02:56.4]} 6... Nf6 {[%clk
0:03:00.8]} 7. Re1 {[%clk 0:02:56.8]} 7... e6 {[%clk 0:02:57.9]} 8. d4 {[%clk
0:02:57.2]} 8... Be7 {[%clk 0:02:58.3]} 9. dxc5 {[%clk 0:02:38.3]} 9... dxc5
{[%clk 0:02:58.4]} 10. e5 {[%clk 0:02:38.5]} 10... Nd5 {[%clk 0:02:57.4]} 11. c4
{[%clk 0:02:38.9]} 11... Nb6 {[%clk 0:02:55.2]} 12. Qe2 {[%clk 0:01:59.2]} 12...
Bc6 {[%clk 0:02:55.2]} 13. b3 {[%clk 0:01:55.6]} 13... Nd7 {[%clk 0:02:43.9]}
14. Nc3 {[%clk 0:01:44.6]} 14... Qc7 {[%clk 0:02:39.3]} 15. Bf4 {[%clk
0:01:30.5]} 15... g5 {[%clk 0:02:19.2]} 16. Nxg5 {[%clk 0:01:23.5]} 16... Rg8
{[%clk 0:02:10.3]} 17. Qh5 {[%clk 0:01:22.3]} 17... O-O-O {[%clk 0:02:09.7]} 18.
Nce4 {[%clk 0:01:10.1]} 18... Rg7 {[%clk 0:01:34.5]} 19. Nxf7 {[%clk 0:00:53.7]}
19... Bxe4 {[%clk 0:01:34.9]} 20. Rxe4 {[%clk 0:00:53.3]} 20... Rf8 {[%clk
0:01:34.7]} 21. Ng5 {[%clk 0:00:49.9]} 21... Qc6 {[%clk 0:01:31.7]} 22. Rae1
{[%clk 0:00:17.9]} 22... Rxf4 {[%clk 0:01:08.3]} 23. Rxf4 {[%clk 0:00:18.1]}
23... Rxg5 {[%clk 0:01:08.4]} 24. Qe8+ {[%clk 0:00:12.5]} 24... Bd8 {[%clk
0:00:58]} 25. f3 {[%clk 0:00:12.9]} 25... Nxe5 {[%clk 0:00:56.7]} 26. Qxc6+
{[%clk 0:00:11.1]} 26... Nxc6 {[%clk 0:00:54.4]} 27. Rxe6 {[%clk 0:00:10.6]}
27... Nd4 {[%clk 0:00:52.8]} 28. Re8 {[%clk 0:00:09.7]} 28... Kd7 {[%clk
0:00:53]} 29. Rh8 {[%clk 0:00:09.9]} 29... Ne2+ {[%clk 0:00:52.5]} 30. Kf2
{[%clk 0:00:09.6]} 30... Nxf4 {[%clk 0:00:53.4]} 31. Rxh7+ {[%clk 0:00:10.1]}
31... Be7 {[%clk 0:00:50.4]} 32. g3 {[%clk 0:00:09.6]} 32... Nd3+ {[%clk
0:00:50.8]} 33. Ke3 {[%clk 0:00:09.9]} 33... Nc1 {[%clk 0:00:49]} 34. f4 {[%clk
0:00:09.2]} 34... Rg8 {[%clk 0:00:47.4]} 35. f5 {[%clk 0:00:06.3]} 35... Kd6
{[%clk 0:00:47.9]} 36. Rh6+ {[%clk 0:00:05.3]} 36... Kd7 {[%clk 0:00:47.2]} 37.
Rh7 {[%clk 0:00:05.8]} 37... Kd8 {[%clk 0:00:47.2]} 38. Kf4 {[%clk 0:00:02.7]}
38... Nd3+ {[%clk 0:00:39.8]} 39. Ke4 {[%clk 0:00:03.3]} 39... Nf2+ {[%clk
0:00:40.4]} 40. Kd5 {[%clk 0:00:03.5]} 40... Rf8 {[%clk 0:00:37]} 41. Ke5 {[%clk
0:00:02.1]} 41... Ng4+ {[%clk 0:00:37.1]} 42. Kf4 {[%clk 0:00:02.1]} 42... Nf6
{[%clk 0:00:37]} 43. Rg7 {[%clk 0:00:02.2]} 43... Nh5+ {[%clk 0:00:24]} 0-1

[Event "Late-Titled-Tuesday-Blitz-May-28-2024"]
[Site "Chess.com"]
[Date "2024.05.28"]
[Round "4"]
[White "komogro"]
[Black "GMTalks_Youtube"]
[Result "1-0"]
[WhiteElo "2570"]
[BlackElo "2770"]
[TimeControl "180+1"]
[EndTime "14:38:43 PDT"]
[Termination "komogro won on time"]

1. Nf3 {[%clk 0:02:58.8]} 1... d5 {[%clk 0:02:59]} 2. g3 {[%clk 0:02:59]} 2...
g6 {[%clk 0:02:58.6]} 3. Bg2 {[%clk 0:02:59.6]} 3... Bg7 {[%clk 0:02:59.1]} 4.
O-O {[%clk 0:03:00]} 4... e5 {[%clk 0:02:58.3]} 5. d3 {[%clk 0:03:00.4]} 5...
Nc6 {[%clk 0:02:56.3]} 6. Nbd2 {[%clk 0:03:01.1]} 6... Nge7 {[%clk 0:02:55.5]}
7. c3 {[%clk 0:03:01.6]} 7... a5 {[%clk 0:02:54.8]} 8. e4 {[%clk 0:03:01.9]}
8... O-O {[%clk 0:02:53.6]} 9. a4 {[%clk 0:03:02.2]} 9... h6 {[%clk 0:02:52.6]}
10. Re1 {[%clk 0:03:00.5]} 10... Re8 {[%clk 0:02:51.8]} 11. exd5 {[%clk
0:02:50.8]} 11... Nxd5 {[%clk 0:02:51]} 12. Nc4 {[%clk 0:02:51.7]} 12... Bf5
{[%clk 0:02:46]} 13. Nh4 {[%clk 0:02:47.4]} 13... Be6 {[%clk 0:02:44.9]} 14. Qb3
{[%clk 0:02:46.5]} 14... Rb8 {[%clk 0:02:04]} 15. Qc2 {[%clk 0:02:39.1]} 15...
g5 {[%clk 0:01:53.5]} 16. Nf3 {[%clk 0:02:39.2]} 16... Bf5 {[%clk 0:01:54.1]}
17. Nfd2 {[%clk 0:02:34.4]} 17... Bg6 {[%clk 0:01:38.9]} 18. Ne4 {[%clk
0:02:34.3]} 18... f5 {[%clk 0:01:31.4]} 19. Nc5 {[%clk 0:02:33.9]} 19... b6
{[%clk 0:01:30.8]} 20. Nb3 {[%clk 0:02:25.3]} 20... Qd7 {[%clk 0:01:27.1]} 21.
Bd2 {[%clk 0:02:06.8]} 21... Rbd8 {[%clk 0:01:26.3]} 22. Rad1 {[%clk 0:02:06.7]}
22... Nde7 {[%clk 0:01:21]} 23. Bc1 {[%clk 0:02:06.3]} 23... Kh7 {[%clk
0:01:17.9]} 24. Ne3 {[%clk 0:01:56.8]} 24... g4 {[%clk 0:01:09.4]} 25. Nc4
{[%clk 0:01:55.4]} 25... Nd5 {[%clk 0:01:00.5]} 26. Na3 {[%clk 0:01:44.3]} 26...
Nf6 {[%clk 0:00:42.1]} 27. Nb5 {[%clk 0:01:39.7]} 27... Re7 {[%clk 0:00:37.6]}
28. Nd2 {[%clk 0:01:36.4]} 28... Rde8 {[%clk 0:00:35.2]} 29. Nc4 {[%clk
0:01:35.9]} 29... Nd5 {[%clk 0:00:28.6]} 30. Qe2 {[%clk 0:01:30.9]} 30... Nf6
{[%clk 0:00:21.4]} 31. Qf1 {[%clk 0:01:29.4]} 31... Re6 {[%clk 0:00:19.1]} 32.
h3 {[%clk 0:01:28.2]} 32... h5 {[%clk 0:00:18.8]} 33. h4 {[%clk 0:01:27.6]}
33... Nd5 {[%clk 0:00:16.4]} 34. Bg5 {[%clk 0:01:25]} 34... f4 {[%clk
0:00:16.9]} 35. Be4 {[%clk 0:01:21.8]} 35... Rf8 {[%clk 0:00:15.9]} 36. Qe2
{[%clk 0:01:20.5]} 36... f3 {[%clk 0:00:15.4]} 37. Qc2 {[%clk 0:01:18.5]} 37...
Nde7 {[%clk 0:00:12.8]} 38. Ne3 {[%clk 0:01:14.6]} 38... Qe8 {[%clk 0:00:11.4]}
39. Qb3 {[%clk 0:01:13.2]} 39... Qf7 {[%clk 0:00:07.2]} 40. Nd5 {[%clk
0:01:11.2]} 40... Bxe4 {[%clk 0:00:06.2]} 41. dxe4 {[%clk 0:01:11.2]} 41... Ng6
{[%clk 0:00:06.6]} 42. Nbxc7 {[%clk 0:01:10.5]} 42... Rd6 {[%clk 0:00:05.8]} 43.
Qxb6 {[%clk 0:01:10.4]} 43... Bh6 {[%clk 0:00:04.1]} 44. Qc5 {[%clk 0:01:09.8]}
44... Bxg5 {[%clk 0:00:03.9]} 45. Qxd6 {[%clk 0:01:09.9]} 45... Bxh4 {[%clk
0:00:04.6]} 46. Qxc6 {[%clk 0:01:09.8]} 46... Nf4 {[%clk 0:00:05.3]} 47. Nxf4
{[%clk 0:01:03.4]} 47... exf4 {[%clk 0:00:05]} 48. Rd7 {[%clk 0:01:02.8]} 48...
Be7 {[%clk 0:00:04.1]} 49. Nd5 {[%clk 0:01:02.3]} 49... fxg3 {[%clk 0:00:04.1]}
50. Rxe7 {[%clk 0:01:02.3]} 50... gxf2+ {[%clk 0:00:05]} 51. Kxf2 {[%clk
0:01:01.8]} 51... g3+ {[%clk 0:00:05.9]} 52. Kxg3 {[%clk 0:01:00.3]} 1-0